{"text_format":"1","workbook":"xlsx","n_sheets":5,"sheets":["Main","جنح","مدنى","أقسام المحاكم الجزئية","معادلات"],"not_rendered":{"charts":0,"images":0,"macros":1,"external_links":0,"defined_names":79,"comments":2,"pivot_tables":0},"unopened":[],"bounds":{"document_bytes":16777216,"sheet_cells":100000,"rows_first":2000,"rows_last":500,"rows_between":2000,"halvings":0,"cell_chars":16384,"cell_head_chars":4096},"cells_cut":0,"cells_raw":0,"read":"whole","date_system":"1900"}

{"sheet":"Main","index":0,"n_rows":32,"n_cols":15,"rows_kept":32,"cut":false,"hidden":false,"merged":[]}
["مسلسل","المحاكم","المحكمة ","الدائرة","رقم القضية","موضوع القضية","الموكل","صفته","الخصم","صفتهُ","اخر جلسة","الجلسة القادمة","القرار / الحكم","قيمة الدعوى","ملاحظات"]
[1,"المحاكم.الجزئية","محكمة كفر صقر الجزئية","جنح",1,"حبس","محمد","مجنى عليى","يوسف","مجنى عليى","2000-01-01","2000-01-11","حبس",1000]
[2,"المحاكم.الإبتدائية","محكمة الجيزة الأبتدائية","مدنى",2,"سرقة","احمد","جانى","ايمن","جانى","2000-01-02","2000-01-12","اعدام",1001]
[3,"المحاكم.الإستئنافية","محكمة المنصورة الإستئنافية","مدنى",3,"قتل","محمود","جانى","ابراهيم","جانى","2000-01-03","2000-01-13","سجن",1002]
[4,"المحاكم.الإقتصادية","محكمة الإسماعلية الإقتصادية","جنح",4,"تحرش","على","مجنى علية","محمود","مجنى علية","2000-01-04","2000-01-14","سجن",1003]
[5,"محاكم.مجلس.الدولة","المحاكم التأديبية","جنح",5,"صحة نوقيع","ابراهيم","جانى","على","جانى","2000-01-05","2000-01-15","حبس",1004]
[6,"المحكمة.الدستورية.العليا","المحكمة الدستورية العليا","مدنى",6,"شيك","ايمن","جانى","احمد","جانى","2000-01-06","2000-01-16","اعدام",1005]
[7,"محكمة.النقض","محكمة النقض","مدنى",7,"مشاجرة","يوسف","مجنى علية","محمد","مجنى علية","2000-01-07","2000-01-17","سجن",1006]
[8]
[9]
[10]
[11]
[12]
[13]
[14]
[15]
[16]
[17]
[18]
[19]
[20]
[21]
[22]
[23]
[24]
[25]
[26]
[27]
[28]
[29]
[30]
[31]

{"sheet":"جنح","index":1,"n_rows":19,"n_cols":15,"rows_kept":19,"cut":false,"hidden":false,"merged":[]}
["مسلسل","المحاكم","المحكمة ","الدائرة","رقم القضية","موضوع القضية","الموكل","صفته","الخصم","صفتهُ","اخر جلسة","الجلسة القادمة","القرار / الحكم","قيمة الدعوى","ملاحظات"]
[null,"المحاكم.الجزئية","محكمة كفر صقر الجزئية","جنح",1,"حبس","محمد","مجنى عليى","يوسف","مجنى عليى","2000-01-01","2000-01-11","حبس",1000]
[null,"المحاكم.الإقتصادية","محكمة الإسماعلية الإقتصادية","جنح",4,"تحرش","على","مجنى علية","محمود","مجنى علية","2000-01-04","2000-01-14","سجن",1003]
[null,"محاكم.مجلس.الدولة","المحاكم التأديبية","جنح",5,"صحة نوقيع","ابراهيم","جانى","على","جانى","2000-01-05","2000-01-15","حبس",1004]
[null,"المحاكم.الجزئية","محكمة كفر صقر الجزئية","جنح",1,"حبس","محمد","مجنى عليى","يوسف","مجنى عليى","2000-01-01","2000-01-11","حبس",1000]
[null,"المحاكم.الإقتصادية","محكمة الإسماعلية الإقتصادية","جنح",4,"تحرش","على","مجنى علية","محمود","مجنى علية","2000-01-04","2000-01-14","سجن",1003]
[null,"محاكم.مجلس.الدولة","المحاكم التأديبية","جنح",5,"صحة نوقيع","ابراهيم","جانى","على","جانى","2000-01-05","2000-01-15","حبس",1004]
[null,"المحاكم.الجزئية","محكمة كفر صقر الجزئية","جنح",1,"حبس","محمد","مجنى عليى","يوسف","مجنى عليى","2000-01-01","2000-01-11","حبس",1000]
[null,"المحاكم.الإقتصادية","محكمة الإسماعلية الإقتصادية","جنح",4,"تحرش","على","مجنى علية","محمود","مجنى علية","2000-01-04","2000-01-14","سجن",1003]
[null,"محاكم.مجلس.الدولة","المحاكم التأديبية","جنح",5,"صحة نوقيع","ابراهيم","جانى","على","جانى","2000-01-05","2000-01-15","حبس",1004]
[null,"المحاكم.الجزئية","محكمة كفر صقر الجزئية","جنح",1,"حبس","محمد","مجنى عليى","يوسف","مجنى عليى","2000-01-01","2000-01-11","حبس",1000]
[null,"المحاكم.الإقتصادية","محكمة الإسماعلية الإقتصادية","جنح",4,"تحرش","على","مجنى علية","محمود","مجنى علية","2000-01-04","2000-01-14","سجن",1003]
[null,"محاكم.مجلس.الدولة","المحاكم التأديبية","جنح",5,"صحة نوقيع","ابراهيم","جانى","على","جانى","2000-01-05","2000-01-15","حبس",1004]
[null,"المحاكم.الجزئية","محكمة كفر صقر الجزئية","جنح",1,"حبس","محمد","مجنى عليى","يوسف","مجنى عليى","2000-01-01","2000-01-11","حبس",1000]
[null,"المحاكم.الإقتصادية","محكمة الإسماعلية الإقتصادية","جنح",4,"تحرش","على","مجنى علية","محمود","مجنى علية","2000-01-04","2000-01-14","سجن",1003]
[null,"محاكم.مجلس.الدولة","المحاكم التأديبية","جنح",5,"صحة نوقيع","ابراهيم","جانى","على","جانى","2000-01-05","2000-01-15","حبس",1004]
[null,"المحاكم.الجزئية","محكمة كفر صقر الجزئية","جنح",1,"حبس","محمد","مجنى عليى","يوسف","مجنى عليى","2000-01-01","2000-01-11","حبس",1000]
[null,"المحاكم.الإقتصادية","محكمة الإسماعلية الإقتصادية","جنح",4,"تحرش","على","مجنى علية","محمود","مجنى علية","2000-01-04","2000-01-14","سجن",1003]
[null,"محاكم.مجلس.الدولة","المحاكم التأديبية","جنح",5,"صحة نوقيع","ابراهيم","جانى","على","جانى","2000-01-05","2000-01-15","حبس",1004]

{"sheet":"مدنى","index":2,"n_rows":25,"n_cols":15,"rows_kept":25,"cut":false,"hidden":false,"merged":[]}
["مسلسل","المحاكم","المحكمة ","الدائرة","رقم القضية","موضوع القضية","الموكل","صفته","الخصم","صفتهُ","اخر جلسة","الجلسة القادمة","القرار / الحكم","قيمة الدعوى","ملاحظات"]
[null,"المحاكم.الإبتدائية","محكمة الجيزة الأبتدائية","مدنى",2,"سرقة","احمد","جانى","ايمن","جانى","2000-01-02","2000-01-12","اعدام",1001]
[null,"المحاكم.الإستئنافية","محكمة المنصورة الإستئنافية","مدنى",3,"قتل","محمود","جانى","ابراهيم","جانى","2000-01-03","2000-01-13","سجن",1002]
[null,"المحكمة.الدستورية.العليا","المحكمة الدستورية العليا","مدنى",6,"شيك","ايمن","جانى","احمد","جانى","2000-01-06","2000-01-16","اعدام",1005]
[null,"محكمة.النقض","محكمة النقض","مدنى",7,"مشاجرة","يوسف","مجنى علية","محمد","مجنى علية","2000-01-07","2000-01-17","سجن",1006]
[null,"المحاكم.الإبتدائية","محكمة الجيزة الأبتدائية","مدنى",2,"سرقة","احمد","جانى","ايمن","جانى","2000-01-02","2000-01-12","اعدام",1001]
[null,"المحاكم.الإستئنافية","محكمة المنصورة الإستئنافية","مدنى",3,"قتل","محمود","جانى","ابراهيم","جانى","2000-01-03","2000-01-13","سجن",1002]
[null,"المحكمة.الدستورية.العليا","المحكمة الدستورية العليا","مدنى",6,"شيك","ايمن","جانى","احمد","جانى","2000-01-06","2000-01-16","اعدام",1005]
[null,"محكمة.النقض","محكمة النقض","مدنى",7,"مشاجرة","يوسف","مجنى علية","محمد","مجنى علية","2000-01-07","2000-01-17","سجن",1006]
[null,"المحاكم.الإبتدائية","محكمة الجيزة الأبتدائية","مدنى",2,"سرقة","احمد","جانى","ايمن","جانى","2000-01-02","2000-01-12","اعدام",1001]
[null,"المحاكم.الإستئنافية","محكمة المنصورة الإستئنافية","مدنى",3,"قتل","محمود","جانى","ابراهيم","جانى","2000-01-03","2000-01-13","سجن",1002]
[null,"المحكمة.الدستورية.العليا","المحكمة الدستورية العليا","مدنى",6,"شيك","ايمن","جانى","احمد","جانى","2000-01-06","2000-01-16","اعدام",1005]
[null,"محكمة.النقض","محكمة النقض","مدنى",7,"مشاجرة","يوسف","مجنى علية","محمد","مجنى علية","2000-01-07","2000-01-17","سجن",1006]
[null,"المحاكم.الإبتدائية","محكمة الجيزة الأبتدائية","مدنى",2,"سرقة","احمد","جانى","ايمن","جانى","2000-01-02","2000-01-12","اعدام",1001]
[null,"المحاكم.الإستئنافية","محكمة المنصورة الإستئنافية","مدنى",3,"قتل","محمود","جانى","ابراهيم","جانى","2000-01-03","2000-01-13","سجن",1002]
[null,"المحكمة.الدستورية.العليا","المحكمة الدستورية العليا","مدنى",6,"شيك","ايمن","جانى","احمد","جانى","2000-01-06","2000-01-16","اعدام",1005]
[null,"محكمة.النقض","محكمة النقض","مدنى",7,"مشاجرة","يوسف","مجنى علية","محمد","مجنى علية","2000-01-07","2000-01-17","سجن",1006]
[null,"المحاكم.الإبتدائية","محكمة الجيزة الأبتدائية","مدنى",2,"سرقة","احمد","جانى","ايمن","جانى","2000-01-02","2000-01-12","اعدام",1001]
[null,"المحاكم.الإستئنافية","محكمة المنصورة الإستئنافية","مدنى",3,"قتل","محمود","جانى","ابراهيم","جانى","2000-01-03","2000-01-13","سجن",1002]
[null,"المحكمة.الدستورية.العليا","المحكمة الدستورية العليا","مدنى",6,"شيك","ايمن","جانى","احمد","جانى","2000-01-06","2000-01-16","اعدام",1005]
[null,"محكمة.النقض","محكمة النقض","مدنى",7,"مشاجرة","يوسف","مجنى علية","محمد","مجنى علية","2000-01-07","2000-01-17","سجن",1006]
[null,"المحاكم.الإبتدائية","محكمة الجيزة الأبتدائية","مدنى",2,"سرقة","احمد","جانى","ايمن","جانى","2000-01-02","2000-01-12","اعدام",1001]
[null,"المحاكم.الإستئنافية","محكمة المنصورة الإستئنافية","مدنى",3,"قتل","محمود","جانى","ابراهيم","جانى","2000-01-03","2000-01-13","سجن",1002]
[null,"المحكمة.الدستورية.العليا","المحكمة الدستورية العليا","مدنى",6,"شيك","ايمن","جانى","احمد","جانى","2000-01-06","2000-01-16","اعدام",1005]
[null,"محكمة.النقض","محكمة النقض","مدنى",7,"مشاجرة","يوسف","مجنى علية","محمد","مجنى علية","2000-01-07","2000-01-17","سجن",1006]

{"sheet":"أقسام المحاكم الجزئية","index":3,"n_rows":66,"n_cols":65,"rows_kept":66,"cut":false,"hidden":true,"merged":[[0,0,0,64]]}
["أقسام المحاكم الجزئية فى جمهورية مصر العربية                                                                      أقسام المحاكم الجزئية فى جمهورية مصر العربية                                                 أقسام المحاكم الجزئية فى جمهورية مصر العربية                                    أقسام المحاكم الجزئية فى جمهورية مصر العربية                                    أقسام المحاكم الجزئية فى جمهورية مصر العربية                                                             أقسام المحاكم الجزئية فى جمهورية مصر العربية                                                        أقسام المحاكم الجزئية فى جمهورية مصر العربية             أقسام المحاكم الجزئية فى جمهورية مصر العربية                                                    أقسام المحاكم الجزئية فى جمهورية مصر العربية                                أقسام المحاكم الجزئية فى جمهورية مصر العربية                                                            أقسام المحاكم الجزئية فى جمهورية مصر العربية                              أقسام المحاكم الجزئية فى جمهورية مصر العربية             أقسام المحاكم الجزئية فى جمهورية مصر العربية"]
["المحاكم جزئى","محكمة.كفر.صقر.الجزئية","محكمة.ابو.كبير.الجزئية","محكمة.الإسماعلية.الجزئية","محكمة.الأربعين.الجزئية","محكمة.الباجور.الجزئية","محكمة.البدرشين.الجزئية","محكمة.البساتين.الجزئية","محكمة.الجبل.الأخضر.الجزئية","محكمة.الجلاء.الجزئية","محكمة.الخانكة.الجزئية","محكمة.الدخيلة.الجزئية","محكمة.الزقازيق.الجزئية","محكمة.الزيتون.الجزئية","محكمة.السادات.الجزئية","محكمة.السويس.الجزئية","محكمة.أبو.حماد.الجزئية","محكمة.الصف.الجزئية","محكمة.العاشر.من.رمضان.الجزئية","محكمة.العياط.الجزئية","محكمة.الغردقة.الجزئية","محكمة.القاهرة.الجديدة.الجزئية","محكمة.المعادى.الجزئية","محكمة.المنشية.الجزئية","محكمة.المنصورة.الجزئية","محكمة.المنوفية.الجزئية","محكمة.إسنا.الجزئية","محكمة.أسيوط.الجزئية","محكمة.أكتوبر.الجزئية","محكمة.ببا.الجزئية","محكمة.برج.العرب.الجزئية","محكمة.بلبيس.الجزئية","محكمة.بنها.الجزئية","محكمة.بني.سويف.الجزئية","محكمة.بورسعيد.الجزئية","محكمة.تاج.الدول.الجزئية","محكمة.جنوب.الجيزة.الجزئية","محكمة.حلوان.الجزئية","محكمة.دمياط.الجزئية","محكمة.ديرب.نجم.الجزئية.الجزئية","محكمة.زنانيرى.الجزئية","محكمة.زينهم.الجزئية","محكمة.سمسطا.الجزئية","محكمة.سنورس.الجزئية","محكمة.سوهاج.الجزئية","محكمة.شبرا.الخيمة.الجزئية","محكمة.شبين.القناطر.الجزئية","محكمة.شبين.الكوم.الجزئية","محكمة.شرم.الشيخ.الجزئية","محكمة.شمال.الجيزة.الجزئية","محكمة.طلخا.الجزئية","محكمة.طنطا.الجزئية","محكمة.طهطا.الجزئية","محكمة.طوخ.الجزئية","محكمة.عابدين.الجزئية","محكمة.فايد.الجزئية.الجزئية","محكمة.قويسنا.الجزئية","محكمة.كفر.الشيخ.الجزئية","محكمة.كفر.شكر.الجزئية","محكمة.كوم.حمادة.الجزئية","محكمة.محرم.بك.الجزئية","محكمة.مدينة.نصر.الجزئية","محكمة.مصر.الجديدة.الجزئية","محكمة.ملوي.الجزئية","محكمة.ههيا.الجزئية"]
[{"$f":"معادلات!B2","v":"محكمة كفر صقر الجزئية"},"مركز كفر صقر","مركز أبو كبير","أول الإسماعلية","الأربعين","مركز الباجور","الحوامدية","البساتين","الوايلى","الزاوية","العبور","الدخيلة","أول الزقازيق","الأميرية","السادات","الأربعين","مركز أبو حماد","الصف","أول العاشر من رمضان","العياط","أول الغردقة","أول القاهرة الجديدة","المعادى","أول المنتزه","أول المنصوره","مركز الشهداء","إسنا","أول أسيوط","أول أكتوبر","مركز ببا","برج العرب","مركز بلبيس","أول بنها","بندر بنى سويف","الزهور","الطالبية","الجيزة","15 مايو","مركز دمياط","مركز ديرب نجم","روض الفرج","الخليفة","مركز سمسطا","مركز سنورس","المنشأه","أول شبرا الخيمه","مركز شبين القناطر","شبين الكوم","أول شرم الشيخ","الدقى","مركز طلخا","أول طنطا","طهطا","مركز طوخ","عابدين","مركز فايد","مركز قويسنا","مركز كفر الشيخ","مركز كفر شكر","مركز كوم حمادة","محرم بك","أول مدينة نصر","مصر الجديدة","بندر ملوى","مركز ههيا"]
[{"$f":"معادلات!B3","v":"محكمة ابو كبير الجزئية"},null,null,"ثالث الإسماعلية","فيصل",null,"البدرشين","المعادى",null,"الساحل","الخانكة","أول العامرية","ثان الزقازيق","الزيتون",null,"فيصل",null,null,"ثان العاشر من رمضان",null,"ثان الغردقة","ثان القاهرة الجديدة","البساتين","ثان المنتزه","ثان المنصورة","أشمون",null,"ثان أسيوط","ثان أكتوبر",null,"المرور",null,"مركز بنها","مركز بنى سويف","أول بور فؤاد","العمرانية",null,"حلوان",null,null,null,"السيدة زينب",null,null,"أول سوهاج","ثان شبرا الخيمه",null,null,null,"العجوزة",null,null,null,null,"قصر النيل",null,"قويسنا","كفر الشيخ",null,null,"ميناء البصل","ثان مدينة نصر","عين شمس"]
[{"$f":"معادلات!B4","v":"محكمة الإسماعلية الجزئية"},null,null,null,"أول السويس",null,null,"دار السلام",null,"الشرابية","الخصوص","ثان العامرية",null,"المطرية",null,"أول السويس",null,null,null,null,null,"ثالث القاهرة الجديدة","دار السلام","أول الرمل","مركز المنصورة",null,null,"مركز أسيوط","الهرم",null,null,null,null,null,null,"إمبابة",null,"التبين",null,null,null,"المقطم",null,null,"ثان سوهاج",null,null,null,null,"الوراق",null,null,null,null,null,null,null,"مركز الرياض",null,null,null,null,"النزهه"]
[{"$f":"معادلات!B5","v":"محكمة الأربعين الجزئية"},null,null,null,"ثان السويس",null,null,null,null,"الظاهر",null,null,null,"حدائق القبه",null,"ثان السويس",null,null,null,null,null,"التجمع الأول",null,"ثان الرمل","طلخا",null,null,null,null,null,null,null,null,null,null,"بولاق الدكرور",null,null,null,null,null,"باب الشعرية",null,null,null,null,null,null,null,"أوسيم"]
[{"$f":"معادلات!B6","v":"محكمة الباجور الجزئية"},null,null,null,null,null,null,null,null,"الأزبكية",null,null,null,null,null,null,null,null,null,null,null,"الشروق",null,"ثالث المنتزه",null,null,null,null,null,null,null,null,null,null,null,"مركز الجيزة",null,null,null,null,null,"مصر القديمة",null,null,null,null,null,null,null,"مكز أوسيم"]
[{"$f":"معادلات!B7","v":"محكمة البدرشين الجزئية"},null,null,null,null,null,null,null,null,"شبرا مصر",null,null,null,null,null,null,null,null,null,null,null,"القطامية",null,"سيدى جابر",null,null,null,null,null,null,null,null,null,null,null,null,null,null,null,null,null,"الدرب الأحمر",null,null,null,null,null,null,null,"مركز كرداسة"]
[{"$f":"معادلات!B8","v":"محكمة البساتين الجزئية"},null,null,null,null,null,null,null,null,null,null,null,null,null,null,null,null,null,null,null,null,"المرج",null,"باب شرق",null,null,null,null,null,null,null,null,null,null,null,null,null,null,null,null,null,null,null,null,null,null,null,null,null,"مركز إمبابة"]
[{"$f":"معادلات!B9","v":"محكمة الجبل الأخضر الجزئية"},null,null,null,null,null,null,null,null,null,null,null,null,null,null,null,null,null,null,null,null,"أول السلام",null,"اللبان"]
[{"$f":"معادلات!B10","v":"محكمة الجلاء الجزئية"},null,null,null,null,null,null,null,null,null,null,null,null,null,null,null,null,null,null,null,null,"ثان السلام",null,"العطارين"]
[{"$f":"معادلات!B11","v":"محكمة الخانكة الجزئية"},null,null,null,null,null,null,null,null,null,null,null,null,null,null,null,null,null,null,null,null,"بدر",null,"الجمرك"]
[{"$f":"معادلات!B12","v":"محكمة الدخيلة الجزئية"}]
[{"$f":"معادلات!B13","v":"محكمة الزقازيق الجزئية"}]
[{"$f":"معادلات!B14","v":"محكمة الزيتون الجزئية"}]
[{"$f":"معادلات!B15","v":"محكمة السادات الجزئية"}]
[{"$f":"معادلات!B16","v":"محكمة السويس الجزئية"}]
[{"$f":"معادلات!B17","v":"محكمة أبو حماد الجزئية"}]
[{"$f":"معادلات!B18","v":"محكمة الصف الجزئية"}]
[{"$f":"معادلات!B19","v":"محكمة العاشر من رمضان الجزئية"}]
[{"$f":"معادلات!B20","v":"محكمة العياط الجزئية"}]
[{"$f":"معادلات!B21","v":"محكمة الغردقة الجزئية"}]
[{"$f":"معادلات!B22","v":"محكمة القاهرة الجديدة الجزئية"}]
[{"$f":"معادلات!B23","v":"محكمة المعادى الجزئية"}]
[{"$f":"معادلات!B24","v":"محكمة المنشية الجزئية"}]
[{"$f":"معادلات!B25","v":"محكمة المنصورة الجزئية"}]
[{"$f":"معادلات!B26","v":"محكمة المنوفية الجزئية"}]
[{"$f":"معادلات!B27","v":"محكمة إسنا الجزئية"}]
[{"$f":"معادلات!B28","v":"محكمة أسيوط الجزئية"}]
[{"$f":"معادلات!B29","v":"محكمة أكتوبر الجزئية"}]
[{"$f":"معادلات!B30","v":"محكمة ببا الجزئية"}]
[{"$f":"معادلات!B31","v":"محكمة برج العرب الجزئية"}]
[{"$f":"معادلات!B32","v":"محكمة بلبيس الجزئية"}]
[{"$f":"معادلات!B33","v":"محكمة بنها الجزئية"}]
[{"$f":"معادلات!B34","v":"محكمة بني سويف الجزئية"}]
[{"$f":"معادلات!B35","v":"محكمة بورسعيد الجزئية"}]
[{"$f":"معادلات!B36","v":"محكمة تاج الدول الجزئية"}]
[{"$f":"معادلات!B37","v":"محكمة جنوب الجيزة الجزئية"}]
[{"$f":"معادلات!B38","v":"محكمة حلوان الجزئية"}]
[{"$f":"معادلات!B39","v":"محكمة دمياط الجزئية"}]
[{"$f":"معادلات!B40","v":"محكمة ديرب نجم الجزئية الجزئية"}]
[{"$f":"معادلات!B41","v":"محكمة زنانيرى الجزئية"}]
[{"$f":"معادلات!B42","v":"محكمة زينهم الجزئية"}]
[{"$f":"معادلات!B43","v":"محكمة سمسطا الجزئية"}]
[{"$f":"معادلات!B44","v":"محكمة سنورس الجزئية"}]
[{"$f":"معادلات!B45","v":"محكمة سوهاج الجزئية"}]
[{"$f":"معادلات!B46","v":"محكمة شبرا الخيمة الجزئية"}]
[{"$f":"معادلات!B47","v":"محكمة شبين القناطر الجزئية"}]
[{"$f":"معادلات!B48","v":"محكمة شبين الكوم الجزئية"}]
[{"$f":"معادلات!B49","v":"محكمة شرم الشيخ الجزئية"}]
[{"$f":"معادلات!B50","v":"محكمة شمال الجيزة الجزئية"}]
[{"$f":"معادلات!B51","v":"محكمة طلخا الجزئية"}]
[{"$f":"معادلات!B52","v":"محكمة طنطا الجزئية"}]
[{"$f":"معادلات!B53","v":"محكمة طهطا الجزئية"}]
[{"$f":"معادلات!B54","v":"محكمة طوخ الجزئية"}]
[{"$f":"معادلات!B55","v":"محكمة عابدين الجزئية"}]
[{"$f":"معادلات!B56","v":"محكمة فايد الجزئية الجزئية"}]
[{"$f":"معادلات!B57","v":"محكمة قويسنا الجزئية"}]
[{"$f":"معادلات!B58","v":"محكمة كفر الشيخ الجزئية"}]
[{"$f":"معادلات!B59","v":"محكمة كفر شكر الجزئية"}]
[{"$f":"معادلات!B60","v":"محكمة كوم حمادة الجزئية"}]
[{"$f":"معادلات!B61","v":"محكمة محرم بك الجزئية"}]
[{"$f":"معادلات!B62","v":"محكمة مدينة نصر الجزئية"}]
[{"$f":"معادلات!B63","v":"محكمة مصر الجديدة الجزئية"}]
[{"$f":"معادلات!B64","v":"محكمة ملوي الجزئية"}]
[{"$f":"معادلات!B65","v":"محكمة ههيا الجزئية"}]

{"sheet":"معادلات","index":4,"n_rows":65,"n_cols":10,"rows_kept":65,"cut":false,"hidden":true,"merged":[]}
["المحاكم.الرئيسية","المحاكم.الجزئية","المحاكم.الإبتدائية","المحاكم.الإستئنافية","المحاكم.الإقتصادية","محاكم.مجلس.الدولة","المحكمة.الدستورية.العليا","محكمة.النقض"]
["المحاكم.الجزئية","محكمة كفر صقر الجزئية","محكمة شمال القاهرة الإبتدائية","محكمة القاهرة الإستئنافية","محكمة القاهرة الإقتصادية","القضاء الإدارى","المحكمة الدستورية العليا","محكمة النقض",null,"محكمة.كفر.صقر.الجزئية"]
["المحاكم.الإبتدائية","محكمة ابو كبير الجزئية","محكمة جنوب القاهرة الإبتدائية","محكمة الأسكندرية الإستئنافية","محكمة الأسكندرية الإقتصادية","المحاكم الإدارية",null,null,null,"محكمة.ابو.كبير.الجزئية"]
["المحاكم.الإستئنافية","محكمة الإسماعلية الجزئية","محكمة الجيزة الأبتدائية","محكمة طنطا الإستئنافية","محكمة طنطا الإقتصادية","المحاكم التأديبية",null,null,null,"محكمة.الإسماعلية.الجزئية"]
["المحاكم.الإقتصادية","محكمة الأربعين الجزئية","محكمة 6 أكتوبر الأبتدائية","محكمة المنصورة الإستئنافية","محكمة المنصورة الإقتصادية","المحاكم الإدارية العليا",null,null,null,"محكمة.الأربعين.الجزئية"]
["محاكم.مجلس.الدولة","محكمة الباجور الجزئية","محكمة القاهرة الجديدة الأبتدائية","محكمة الإسماعلية الإستئنافية","محكمة الإسماعلية الإقتصادية",null,null,null,null,"محكمة.الباجور.الجزئية"]
["المحكمة.الدستورية.العليا","محكمة البدرشين الجزئية","محكمة بنى سويف الأبتدائية","محكمة بنى سويف الإستئنافية","محكمة بنى سويف الإقتصادية",null,null,null,null,"محكمة.البدرشين.الجزئية"]
["محكمة.النقض","محكمة البساتين الجزئية","محكمة أسوان الأبتدائية","محكمة قنا الإستئنافية","محكمة قنا الإقتصادية",null,null,null,null,"محكمة.البساتين.الجزئية"]
[null,"محكمة الجبل الأخضر الجزئية","محكمة شرق الإسكندرية الأبتدائية","محكمة أسيوط الإستئنافية","محكمة أسيوط الإقتصادية",null,null,null,null,"محكمة.الجبل.الأخضر.الجزئية"]
[null,"محكمة الجلاء الجزئية","محكمة جنوب سيناء الأبتدائية",null,null,null,null,null,null,"محكمة.الجلاء.الجزئية"]
[null,"محكمة الخانكة الجزئية","محكمة الزقازيق الأبتدائية",null,null,null,null,null,null,"محكمة.الخانكة.الجزئية"]
[null,"محكمة الدخيلة الجزئية","محكمة المحلة الأبتدائية",null,null,null,null,null,null,"محكمة.الدخيلة.الجزئية"]
[null,"محكمة الزقازيق الجزئية","محكمة طنطا الأبتدائية",null,null,null,null,null,null,"محكمة.الزقازيق.الجزئية"]
[null,"محكمة الزيتون الجزئية","محكمة السويس الأبتدائية",null,null,null,null,null,null,"محكمة.الزيتون.الجزئية"]
[null,"محكمة السادات الجزئية","محكمة بنها الأبتدائية",null,null,null,null,null,null,"محكمة.السادات.الجزئية"]
[null,"محكمة السويس الجزئية","محكمة منفلوط الأبتدائية",null,null,null,null,null,null,"محكمة.السويس.الجزئية"]
[null,"محكمة أبو حماد الجزئية","محكمة الإسماعلية الأبتدائية",null,null,null,null,null,null,"محكمة.أبو.حماد.الجزئية"]
[null,"محكمة الصف الجزئية","محكمة شمال سيناء الأبتدائية",null,null,null,null,null,null,"محكمة.الصف.الجزئية"]
[null,"محكمة العاشر من رمضان الجزئية","محكمة شبرا الخيمة الأبتدائية",null,null,null,null,null,null,"محكمة.العاشر.من.رمضان.الجزئية"]
[null,"محكمة العياط الجزئية","محكمة البحر الأحمر الأبتدائية",null,null,null,null,null,null,"محكمة.العياط.الجزئية"]
[null,"محكمة الغردقة الجزئية","محكمة المنصورة الأبتدائية",null,null,null,null,null,null,"محكمة.الغردقة.الجزئية"]
[null,"محكمة القاهرة الجديدة الجزئية","محكمة بور سعيد الأبتدائية",null,null,null,null,null,null,"محكمة.القاهرة.الجديدة.الجزئية"]
[null,"محكمة المعادى الجزئية","محكمة أسيوط الأبتدائية",null,null,null,null,null,null,"محكمة.المعادى.الجزئية"]
[null,"محكمة المنشية الجزئية","محكمة قنا الأبتدائية",null,null,null,null,null,null,"محكمة.المنشية.الجزئية"]
[null,"محكمة المنصورة الجزئية","محكمة دمنهور الأبتدائية",null,null,null,null,null,null,"محكمة.المنصورة.الجزئية"]
[null,"محكمة المنوفية الجزئية","محكمة دمياط الأبتدائية",null,null,null,null,null,null,"محكمة.المنوفية.الجزئية"]
[null,"محكمة إسنا الجزئية","محكمة المنيا الأبتدائية",null,null,null,null,null,null,"محكمة.إسنا.الجزئية"]
[null,"محكمة أسيوط الجزئية","محكمة سوهاج الأبتدائية",null,null,null,null,null,null,"محكمة.أسيوط.الجزئية"]
[null,"محكمة أكتوبر الجزئية","محكمة شبين الكوم الأبتدائية",null,null,null,null,null,null,"محكمة.أكتوبر.الجزئية"]
[null,"محكمة ببا الجزئية","محكمة كفر الشيخ الأبتدائية",null,null,null,null,null,null,"محكمة.ببا.الجزئية"]
[null,"محكمة برج العرب الجزئية","محكمة الفيوم الأبتدائية",null,null,null,null,null,null,"محكمة.برج.العرب.الجزئية"]
[null,"محكمة بلبيس الجزئية","محكمة الأقصر الأبتدائية",null,null,null,null,null,null,"محكمة.بلبيس.الجزئية"]
[null,"محكمة بنها الجزئية","محكمة غرب الإسكندرية الأبتدائية",null,null,null,null,null,null,"محكمة.بنها.الجزئية"]
[null,"محكمة بني سويف الجزئية","محكمة ايتاى البارود الأبتدائية",null,null,null,null,null,null,"محكمة.بني.سويف.الجزئية"]
[null,"محكمة بورسعيد الجزئية","محكمة دكرنس الأبتدائية",null,null,null,null,null,null,"محكمة.بورسعيد.الجزئية"]
[null,"محكمة تاج الدول الجزئية",null,null,null,null,null,null,null,"محكمة.تاج.الدول.الجزئية"]
[null,"محكمة جنوب الجيزة الجزئية",null,null,null,null,null,null,null,"محكمة.جنوب.الجيزة.الجزئية"]
[null,"محكمة حلوان الجزئية",null,null,null,null,null,null,null,"محكمة.حلوان.الجزئية"]
[null,"محكمة دمياط الجزئية",null,null,null,null,null,null,null,"محكمة.دمياط.الجزئية"]
[null,"محكمة ديرب نجم الجزئية الجزئية",null,null,null,null,null,null,null,"محكمة.ديرب.نجم.الجزئية.الجزئية"]
[null,"محكمة زنانيرى الجزئية",null,null,null,null,null,null,null,"محكمة.زنانيرى.الجزئية"]
[null,"محكمة زينهم الجزئية",null,null,null,null,null,null,null,"محكمة.زينهم.الجزئية"]
[null,"محكمة سمسطا الجزئية",null,null,null,null,null,null,null,"محكمة.سمسطا.الجزئية"]
[null,"محكمة سنورس الجزئية",null,null,null,null,null,null,null,"محكمة.سنورس.الجزئية"]
[null,"محكمة سوهاج الجزئية",null,null,null,null,null,null,null,"محكمة.سوهاج.الجزئية"]
[null,"محكمة شبرا الخيمة الجزئية",null,null,null,null,null,null,null,"محكمة.شبرا.الخيمة.الجزئية"]
[null,"محكمة شبين القناطر الجزئية",null,null,null,null,null,null,null,"محكمة.شبين.القناطر.الجزئية"]
[null,"محكمة شبين الكوم الجزئية",null,null,null,null,null,null,null,"محكمة.شبين.الكوم.الجزئية"]
[null,"محكمة شرم الشيخ الجزئية",null,null,null,null,null,null,null,"محكمة.شرم.الشيخ.الجزئية"]
[null,"محكمة شمال الجيزة الجزئية",null,null,null,null,null,null,null,"محكمة.شمال.الجيزة.الجزئية"]
[null,"محكمة طلخا الجزئية",null,null,null,null,null,null,null,"محكمة.طلخا.الجزئية"]
[null,"محكمة طنطا الجزئية",null,null,null,null,null,null,null,"محكمة.طنطا.الجزئية"]
[null,"محكمة طهطا الجزئية",null,null,null,null,null,null,null,"محكمة.طهطا.الجزئية"]
[null,"محكمة طوخ الجزئية",null,null,null,null,null,null,null,"محكمة.طوخ.الجزئية"]
[null,"محكمة عابدين الجزئية",null,null,null,null,null,null,null,"محكمة.عابدين.الجزئية"]
[null,"محكمة فايد الجزئية الجزئية",null,null,null,null,null,null,null,"محكمة.فايد.الجزئية.الجزئية"]
[null,"محكمة قويسنا الجزئية",null,null,null,null,null,null,null,"محكمة.قويسنا.الجزئية"]
[null,"محكمة كفر الشيخ الجزئية",null,null,null,null,null,null,null,"محكمة.كفر.الشيخ.الجزئية"]
[null,"محكمة كفر شكر الجزئية",null,null,null,null,null,null,null,"محكمة.كفر.شكر.الجزئية"]
[null,"محكمة كوم حمادة الجزئية",null,null,null,null,null,null,null,"محكمة.كوم.حمادة.الجزئية"]
[null,"محكمة محرم بك الجزئية",null,null,null,null,null,null,null,"محكمة.محرم.بك.الجزئية"]
[null,"محكمة مدينة نصر الجزئية",null,null,null,null,null,null,null,"محكمة.مدينة.نصر.الجزئية"]
[null,"محكمة مصر الجديدة الجزئية",null,null,null,null,null,null,null,"محكمة.مصر.الجديدة.الجزئية"]
[null,"محكمة ملوي الجزئية",null,null,null,null,null,null,null,"محكمة.ملوي.الجزئية"]
[null,"محكمة ههيا الجزئية",null,null,null,null,null,null,null,"محكمة.ههيا.الجزئية"]